Cogmind - Beta 12 @@@ ROGUE MODE // 2023.11.17 @ 08:14:54 Player: FriskO Result: Destroyed by G-47 Trooper with Particle Gun Performance ------------- Evolutions (3) 1500 Regions Visited (6) 1200 Robots Destroyed (187) 935 Value Destroyed (5535) 5535 Prototype IDs (10) 200 Alien Tech Used (0) 0 Bonus (1657) 1657 TOTAL SCORE: 11027 Bonus ------- Triggered High Security 500 High Alert Combat Kills 1627 Follower Combat Kills 406 Friendly Fire -876 Cogmind --------- Core Integrity 0/700 Matter 183/350 Energy 78/100 System Corruption 29% Temperature Cool (74) Movement Rolling (80) Location -7/Factory Parts ------- > --- POWER (2) -------- (None) > --- PROPULSION (3) --- Wheel > --- UTILITY (5) ------ Small Matter Pod Terrain Scan Processor > --- WEAPON (3) ------- Heavy Particle Gun > --- INVENTORY (5) ---- Heavy Particle Gun Heavy Laser Peak State ------------ > --- POWER ------------ Improved Deuterium Engine Enhanced Nuclear Core > --- PROPULSION ------- Aluminum Leg Carbon-fiber Leg Improved Carbon-fiber Leg > --- UTILITY ---------- Improved Heat Sink Medium Storage Unit Improved Signal Interpreter Hardened Heavy Armor Plating > --- WEAPON ----------- Cooled Pulse Rifle Ion Burst Cannon Heavy Rocket Launcher > --- INVENTORY -------- Carbon-fiber Leg Compact Battery Matter Filter Hardened Heavy Armor Plating Recalibrator Autogun Heavy Rocket Launcher [Rating: 49] Favorites ----------- Power Light Ion Engine Engine Light Ion Engine Power Core Enhanced Nuclear Core Propulsion Aluminum Leg Treads Light Treads Leg Aluminum Leg Wheel Wheel Utility Small Storage Unit Device Improved Sensor Array Storage Small Storage Unit Processor Improved Signal Interpreter Protection Hardened Heavy Armor Plating Weapon Heavy EM Pulse Gun Energy Gun Heavy EM Pulse Gun Energy Cannon Ion Cannon Ballistic Gun Heavy Assault Rifle Ballistic Cannon Assault Cannon Launcher Missile Launcher Impact Weapon Mace Build | -11 -10 -10 -9 -8 -8 -7 ------- Run | Jun Mat Min Mat Mat Sto Fac Slots Evolved 6 | . . . 2 2 . 2 Power 1 | . . . . . . 1 Propulsion 1 | . . . 1 . . . Utility 3 | . . . 1 1 . 1 Weapon 1 | . . . . 1 . . Parts Attached 212 | 8 2 12 47 15 42 86 Power 20 | 1 . 1 6 . 3 9 Engine 17 | 1 . 1 6 . 3 6 Core 3 | . . . . . . 3 Reactor . | . . . . . . . Propulsion 38 | 2 . 1 8 4 10 13 Treads 4 | . . . . . 4 . Leg 31 | 2 . 1 6 4 6 12 Wheel 3 | . . . 2 . . 1 Hover . | . . . . . . . Flight . | . . . . . . . Utility 39 | 2 . . 3 5 7 22 Device 20 | 1 . . 1 3 3 12 Storage 11 | 1 . . . 1 4 5 Processor 4 | . . . 1 1 . 2 Hackware . | . . . . . . . Protection 4 | . . . 1 . . 3 Artifact . | . . . . . . . Weapon 115 | 3 2 10 30 6 22 42 Energy Gun 27 | 1 2 5 7 . . 12 Energy Cannon 20 | . . . 6 3 7 4 Ballistic Gun 31 | 2 . 2 8 2 9 8 Ballistic Cannon 8 | . . . . 1 3 4 Launcher 25 | . . 3 5 . 3 14 Special Weapon . | . . . . . . . Impact Weapon 4 | . . . 4 . . . Slashing Weapon . | . . . . . . . Piercing Weapon . | . . . . . . . Special Melee Weapon . | . . . . . . . Unidentified Prototypes 8 | . . . 1 . 2 5 Corrupted Parts 1 | . . . . . 1 . System Corruption 1 | . . . . . 1 . Parts Lost 64 | . . 1 15 1 10 37 Power 13 | . . . 2 . 3 8 Propulsion 16 | . . . 5 . 4 7 Utility 15 | . . . 2 . . 13 Weapon 20 | . . 1 6 1 3 9 Highest Loss Streak 12 | . . 1 12 1 8 7 To Critical Strikes . | . . . . . . . Average Slot Usage (%) 91 | . 100 100 93 97 91 85 Engine 8 | . 14 14 10 9 5 6 Treads 3 | . . . . . 10 . Leg 20 | . 28 28 28 23 12 19 Device 14 | . 14 14 9 22 16 14 Storage 10 | . 14 14 11 9 10 8 Processor 6 | . . . 10 2 9 5 Protection 1 | . . . . 1 . 2 Energy Gun 7 | . 5 27 13 . . 5 Energy Cannon 6 | . . . 5 19 8 3 Ballistic Gun 6 | . 22 . 1 6 9 7 Ballistic Cannon 2 | . . . . . 5 3 Launcher 1 | . . . . . 3 1 Naked Turns . | . . . . . . . Heaviest Build 68 | 12 15 16 23 33 30 68 Greatest Support 60 | 20 20 20 30 37 60 46 Greatest Overweight (x) 7 | . . . 3 1 7 4 Average Overweight (x) . | . . . . . . . Largest Inventory Capacity 10 | 8 8 8 8 8 10 10 Average Capacity 8 | 6 8 8 8 8 7 9 Most Carried 10 | 5 8 8 8 8 8 10 Average Carried 7 | 2 6 7 7 7 6 7 Final Capacity 10 | 8 8 8 8 8 10 5 Final Carried 8 | 5 8 7 7 8 8 2 Class Distribution -------------------- 40% | Scavenger-Skirmisher 21% | Mutant 16% | Scavenger-Mutant 5% | Scavenger-Tank 4% | Gunner 4% | Tank 3% | Skirmisher Dominant Class ---------------- Mutant | -10/Materials Mutant | -10/Mines Scavenger-Mutant | -9/Materials Scavenger-Skirmisher | -8/Materials Scavenger-Skirmisher | -8/Storage Scavenger-Skirmisher | -7/Factory Resources | -11 -10 -10 -9 -8 -8 -7 ----------- Run | Jun Mat Min Mat Mat Sto Fac Matter Collected 4868 | 278 46 164 646 230 1233 2271 Remotely 42 | . . . . . . 42 Salvage Created 6739 | 30 48 241 880 395 1762 3383 Parts 385 | 3 3 17 57 28 96 181 Haulers Intercepted 5 | . . . 1 . 2 2 Recyclers Shooed 2 | . . . . 1 1 . Parts Field Recycled . | . . . . . . . Retrieved Matter . | . . . . . . . Parts Self-Destructed . | . . . . . . . Prevented . | . . . . . . . Kills | -11 -10 -10 -9 -8 -8 -7 ------- Run | Jun Mat Min Mat Mat Sto Fac Combat Hostiles Destroyed 132 | . 1 9 23 7 25 67 Melee 1 | . . . 1 . . . Guns 51 | . 1 9 7 1 10 23 Cannons 50 | . . . 10 6 12 22 AOE 25 | . . . 2 . 3 20 Classes Destroyed 16 | 1 1 1 7 1 1 4 Worker 19 | . . . 5 . 7 7 Builder 20 | . . . 3 1 5 11 Tunneler 1 | 1 . . . . . . Hauler 5 | . . . 1 . 2 2 Recycler 13 | . . . 2 1 4 6 Mechanic 3 | . . . . . . 3 Watcher 8 | . . . 1 2 2 3 Swarmer 27 | . . 6 12 3 3 3 Grunt 68 | . 1 3 5 1 17 41 Brawler 4 | . . . . . 2 2 Duelist 3 | . . . 1 . . 2 Protector 1 | . . . . . . 1 Sentry 14 | . . . 5 2 5 2 Specialist 4 | . . . . . . 4 Hunter 4 | . . . . 1 2 1 Programmer 11 | . . . . . . 11 Best Kill Streak 17 | 1 1 3 10 4 6 17 Combat Bots Only 8 | . 1 3 5 2 5 8 Max Kills in Single Turn 5 | 1 1 2 4 1 3 5 Gunslinging 1 | . . 1 . . . . Exploded 3 | . . . 1 . 2 3 Melee 1 | . . . 1 . . . Uniques/NPCs Destroyed . | . . . . . . . Combat | -11 -10 -10 -9 -8 -8 -7 -------- Run | Jun Mat Min Mat Mat Sto Fac Damage Taken 9534 | . 33 281 1704 339 1936 5241 Core 1465 | . 12 37 336 52 312 716 Absorbed by Shields 17 | . . . . . . 17 Regen/Repaired (Parts) 503 | . . . 227 . 276 . Core Remaining (%) 57 | 100 . 80 16 . 33 . Volleys Fired 435 | 7 5 32 67 31 100 193 Largest 3 | 2 2 2 2 3 3 3 Hottest 195 | 40 40 90 113 176 188 195 Shots Fired 1001 | 14 10 54 107 81 283 452 Gun 575 | 14 10 48 59 34 151 259 Cannon 363 | . . . 34 47 123 159 Launcher 63 | . . 6 14 . 9 34 Special . | . . . . . . . Kinetic 507 | 14 10 12 11 34 199 227 Thermal 329 | . . . 45 39 54 191 Explosive 63 | . . 6 14 . 9 34 Electromagnetic 102 | . . 36 37 8 21 . Robot Hit Streak 17 | 5 3 5 7 7 13 17 Robot Miss Streak 8 | 2 2 5 4 8 4 7 Penetration Max . | . . . . . . . Secondary Targets 3 | . . 1 . . . 2 Max Gunslinging Chain 1 | . . 1 . . . 1 Shots Hit Robots 533 | 9 4 25 62 36 144 253 Core Hits 350 | 2 2 13 42 17 86 188 Critical Kills . | . . . . . . . Critical Parts Destroyed 2 | . . . 2 . . . Critical Strikes 15 | . . . 3 . 5 7 Burn 5 | . . . . . . 5 Destroy 1 | . . . . . 1 . Blast 4 | . . . . . 2 2 Corrupt 3 | . . . 1 . 2 . Smash 2 | . . . 2 . . . Melee Attacks 13 | . . . 13 . . . Impact 13 | . . . 13 . . . Slashing . | . . . . . . . Piercing . | . . . . . . . Sneak Attacks 1 | . . . 1 . . . Combat Hostiles . | . . . . . . . Follow-up Attacks . | . . . . . . . Damage Inflicted 18019 | 89 36 413 2071 723 3997 10690 Guns 5246 | 89 36 358 394 161 1420 2788 Cannons 5378 | . . . 473 514 1422 2969 Explosions 7006 | . . 36 896 48 1095 4931 Melee 302 | . . . 302 . . . Ramming 87 | . . 19 6 . 60 2 Kinetic 5196 | 89 36 105 84 161 1913 2808 Thermal 4682 | . . . 561 407 632 3082 Explosive 6778 | . . 36 896 . 1048 4798 Electromagnetic 974 | . . 253 222 155 344 . Impact 302 | . . . 302 . . . Slashing . | . . . . . . . Piercing . | . . . . . . . Highest Corruption 29 | . . . 2 . 1 29 Average Corruption 4 | . . . 2 . 1 7 Corruption Purged . | . . . . . . . Corruption Blocked 4 | . . . . . . 4 Effects 115 | . . . 1 . 17 97 Message Errors 33 | . . . . . 10 23 Matter Fused 20 | . . . 1 . 1 18 Heat Flow Errors 9 | . . . . . 2 7 Energy Discharges 11 | . . . . . . 11 Parts Rejected 6 | . . . . . . 6 Parts Fused 2 | . . . . . . 2 Data Loss (minor) 13 | . . . . . 1 12 Data Loss (major) 5 | . . . . . . 5 Misfires 6 | . . . . . 3 3 Alerts 3 | . . . . . . 3 Weapon Failures 7 | . . . . . . 7 Overload Shots . | . . . . . . . Overflow Damage 368 | . . . 85 2 58 223 Projectiles 27 | . . . 1 2 3 21 Explosions 260 | . . . 3 . 55 202 Melee 81 | . . . 81 . . . Knockbacks 30 | . . . 3 . 6 21 Impact 4 | . . . 3 . 1 . Kinetic 25 | . . . . . 5 20 Secondary 1 | . . . . . . 1 Self-Inflicted Damage 473 | . . 23 49 . 241 160 Shots 12 | . . 1 1 . 5 5 Rammed 4 | . . . 1 . 3 . Targets Rammed 20 | . . 4 2 . 11 3 Kicked 14 | . . 4 1 . 6 3 Crushed 2 | . . . . . 2 . Highest Temperature 601 | . 6 252 401 246 300 601 Average Temperature 116 | . 6 103 83 84 61 147 Received Heat Transfer 3340 | . 18 78 384 90 954 1816 Effects 49 | . . . . 6 . 43 Shutdowns 14 | . . . . . . 14 Energy Bleed 5 | . . . . . . 5 Interference 14 | . . . . 6 . 8 Matter Decay 2 | . . . . . . 2 Short Circuit 4 | . . . . . . 4 Damage (minor) 6 | . . . . . . 6 Damage (major) 4 | . . . . . . 4 Siege Activations . | . . . . . . . Robots Corrupted . | . . . . . . . Combat Hostiles . | . . . . . . . Parts Fried 5 | . . . 1 . 4 . Impact Corruptions 6 | . . . 6 . . . Robots Melted 2 | . . . . . . 2 Combat Hostiles 2 | . . . . . . 2 Parts Melted 15 | . . . 4 1 . 10 Heat Transferred 7659 | . . . 1073 642 962 4982 Parts Sabotaged . | . . . . . . . Parts Stolen . | . . . . . . . Parts Stripped . | . . . . . . . Power Chain Reactions 2 | . . . . 1 1 . Missiles Intercepted . | . . . . . . . Alert | -11 -10 -10 -9 -8 -8 -7 ------- Run | Jun Mat Min Mat Mat Sto Fac Peak Influence 1842 | 5 63 269 402 240 644 1842 Initial 292 | . 3 24 . 169 49 292 Average 388 | 1 36 89 143 175 389 730 Maximum Alert Level 5 | . . 1 2 1 2 5 Low Security (%) 30 | 100 100 75 66 53 3 5 Level 1 36 | . . 24 31 46 53 27 Level 2 22 | . . . 1 . 42 28 Level 3 3 | . . . . . . 12 Level 4 6 | . . . . . . 22 Level 5 . | . . . . . . 2 High Security . | . . . . . . . Max Security . | . . . . . . . Squads Dispatched 35 | . 1 . 2 . 9 23 Investigation 12 | . . . 1 . 7 4 Extermination 6 | . . . . . . 6 Reinforcement 9 | . 1 . 1 . 1 6 Assault 4 | . . . . . 1 3 Garrison 4 | . . . . . . 4 Intercept . | . . . . . . . Searches Triggered . | . . . . . . . Construction Impeded 4 | . . . . . 1 3 Haulers Reinforced 1 | . . . . . . 1 Active Scanning Responses . | . . . . . . . Cargo Convoy Interrupts 1 | . . . . . . 1 Stealth | -11 -10 -10 -9 -8 -8 -7 --------- Run | Jun Mat Min Mat Mat Sto Fac Distress Signals 7 | . . 1 2 1 . 3 Communications Jammed . | . . . . . . . Distress Signals . | . . . . . . . Times Spotted 215 | . 4 9 40 12 54 96 Peak Tracking Total 9 | . 2 3 7 4 6 9 Tactical Retreats 4 | . . . . 1 3 . Traps | -11 -10 -10 -9 -8 -8 -7 ------- Run | Jun Mat Min Mat Mat Sto Fac Traps Triggered 2 | . . . . . 1 1 Indirectly . | . . . . . . . Trap Hack Attempts . | . . . . . . . Triggered . | . . . . . . . Disarmed . | . . . . . . . Reprogrammed . | . . . . . . . Reused . | . . . . . . . Traps Extracted . | . . . . . . . Installed . | . . . . . . . Triggered 5 | . . . . . . 5 Machines | -11 -10 -10 -9 -8 -8 -7 ---------- Run | Jun Mat Min Mat Mat Sto Fac Machines Disabled 42 | . . 2 5 . 10 25 Max in Single Turn 4 | . . 1 1 . 2 4 Garrison Access 1 | . . . . . 1 . Machines Repaired . | . . . . . . . Machines Sabotaged . | . . . . . . . Overloaded Fab Kills . | . . . . . . . Hacking | -11 -10 -10 -9 -8 -8 -7 --------- Run | Jun Mat Min Mat Mat Sto Fac Machines Accessed 18 | . . . 5 . 9 4 Terminals 11 | . . . 2 . 7 2 Fabricators 1 | . . . . . . 1 Repair Stations 5 | . . . 2 . 2 1 Recycling Units . | . . . . . . . Scanalyzers 1 | . . . 1 . . . Garrison Access . | . . . . . . . Total Hacks 94 | . . . 36 . 47 11 Successful 58 | . . . 28 . 26 4 Failed 35 | . . . 8 . 20 7 Catastrophic 3 | . . . . . 1 2 Database Lockouts 1 | . . . . . 1 . Manual 2 | . . . . . 2 . Terminals 43 | . . . 9 . 29 5 Fabricators 3 | . . . . . . 3 Repair Stations 37 | . . . 16 . 18 3 Recycling Units . | . . . . . . . Scanalyzers 11 | . . . 11 . . . Garrison Access . | . . . . . . . Terminal Hacks 20 | . . . 5 . 13 2 Record 12 | . . . 5 . 7 . Prototype ID Bank 1 | . . . . . 1 . Open Door 1 | . . . . . 1 . Alert Level 2 | . . . . . 1 1 Unreport Threat 1 | . . . . . 1 . Locate Traps 1 | . . . . . . 1 Hauler Manifests 1 | . . . . . 1 . Zone Layout 1 | . . . . . 1 . Fabricator Hacks . | . . . . . . . Repair Station Hacks 27 | . . . 12 . 13 2 Scan Component 17 | . . . 7 . 8 2 Repair 10 | . . . 5 . 5 . Recycling Unit Hacks . | . . . . . . . Scanalyzer 11 | . . . 11 . . . Insert Component 5 | . . . 5 . . . Analyze 6 | . . . 6 . . . Garrison Access Hacks . | . . . . . . . Unauthorized Hacks . | . . . . . . . Terminals . | . . . . . . . Fabricators . | . . . . . . . Repair Stations . | . . . . . . . Recycling Units . | . . . . . . . Scanalyzers . | . . . . . . . Garrison Access . | . . . . . . . Data Cores Recovered . | . . . . . . . Used . | . . . . . . . Hacking Detections 17 | . . . 4 . 9 4 Full Trace Events 15 | . . . 3 . 8 4 Feedback Events . | . . . . . . . Feedback Blocked . | . . . . . . . Robot Schematics Acquired . | . . . . . . . Robots Built . | . . . . . . . Authchips . | . . . . . . . Time . | . . . . . . . Total Robot Build Rating . | . . . . . . . Part Schematics Acquired 5 | . . . 5 . . . Parts Built . | . . . . . . . Authchips . | . . . . . . . Time . | . . . . . . . Total Part Build Rating . | . . . . . . . Parts Repaired 10 | . . . 5 . 5 . Time 326 | . . . 166 . 160 . Parts Recycled . | . . . . . . . Recycled Matter . | . . . . . . . Retrieved Matter . | . . . . . . . Retrieved Components . | . . . . . . . Parts Scanalyzed 5 | . . . 5 . . . Part Schematics Acquired 5 | . . . 5 . . . Parts Damaged . | . . . . . . . Bothacking | -11 -10 -10 -9 -8 -8 -7 ------------ Run | Jun Mat Min Mat Mat Sto Fac Used RIF Installer . | . . . . . . . Robots Hacked . | . . . . . . . Non-combat . | . . . . . . . Combat . | . . . . . . . Robot Hacks Applied . | . . . . . . . Relay Couplers Released 4 | . . . . . . 4 Programmers 4 | . . . . . . 4 Fabnet Peak Effective % . | . . . . . . . Robots Rewired . | . . . . . . . Allies Hacked . | . . . . . . . Hacks Repelled . | . . . . . . . Allies | -11 -10 -10 -9 -8 -8 -7 -------- Run | Jun Mat Min Mat Mat Sto Fac Total Allies 11 | . . 1 . . 10 . Largest Group 10 | . . 1 1 . 10 . Highest-Rated Group 173 | . . 31 31 . 173 . Highest-Rated Ally 31 | . . 31 31 . 29 . Total Orders . | . . . . . . . Ally Attacks 58 | . . . 14 . 44 . Total Damage 849 | . . . 226 . 623 . Kills 15 | . . . 5 . 10 . Allies Corrupted . | . . . . . . . Allies Melted . | . . . . . . . Intel | -11 -10 -10 -9 -8 -8 -7 ------- Run | Jun Mat Min Mat Mat Sto Fac Robot Analysis Total . | . . . . . . . Derelict Logs Recovered 1 | . . 1 . . . . Drone Launches . | . . . . . . . Drone Recoveries . | . . . . . . . Exploration | -11 -10 -10 -9 -8 -8 -7 ------------- Run | Jun Mat Min Mat Mat Sto Fac Turns Passed 10896 | 118 321 1250 1709 885 3294 3319 Spaces Moved 5259 | 65 201 862 1005 371 1386 1369 Core 126 | 13 . . 17 . 96 . Treads 418 | . . . . . 418 . Legs 4552 | 52 201 862 921 313 872 1331 Wheels 163 | . . . 67 58 . 38 Hover . | . . . . . . . Flight . | . . . . . . . Fastest Speed 50 | 50 120 120 80 80 100 105 Average Speed 136 | 106 120 120 120 114 151 153 Slowest Speed 400 | 120 120 120 200 120 400 260 Overloaded Moves . | . . . . . . . Propulsion Burnouts . | . . . . . . . Robots Hopped . | . . . . . . . Cave-ins Triggered . | . . . . . . . Exploration Rate (%) 45 | 4 34 95 45 21 94 24 Regions Visited 6 Branch Regions 2 Pre-discovered Areas . | . . . . . . . Known Exits Taken 2 | . . . . 1 1 . Unknown Exits Taken 4 | 1 1 1 1 . . . Scrap Searched 1 | . . 1 . . . . Spaces Dug 48 | . . 48 . . . . Terrain Destroyed 524 | . . 67 66 13 107 271 Melee . | . . . . . . . Projectile 41 | . . . . 6 14 21 AOE 483 | . . 67 66 7 93 250 Terrain Rammed . | . . . . . . . Walls Destroyed . | . . . . . . . Machines Disabled . | . . . . . . . Actions | -11 -10 -10 -9 -8 -8 -7 --------- Run | Jun Mat Min Mat Mat Sto Fac Total 8092 | 101 273 1018 1362 773 2366 2199 Wait 1939 | 10 55 107 198 324 792 453 Move 5253 | 64 200 861 1004 370 1385 1369 Hop . | . . . . . . . Pick Up 145 | 12 7 1 22 19 23 61 Fast Attach 11 | . . . 5 . 4 2 Attach 86 | 7 . 1 18 6 11 43 Detach 6 | . . . 1 1 1 3 Swap 115 | 1 2 11 24 9 27 41 Drop 65 | . 4 1 8 13 12 27 Fire 435 | 7 5 32 67 31 100 193 Melee 13 | . . . 13 . . . Ram 1 | . . . 1 . . . Kick 14 | . . 4 1 . 6 3 Crush 5 | . . . . . 5 . Escape Stasis 4 | . . . . . . 4 Rewire . | . . . . . . . Trap . | . . . . . . . Miscellaneous . | . . . . . . . Route ------- -11/Junkyard -10/Materials -10/Mines (discovered 3 exits: *Mat x2 / [*Exi]) -9/Materials -8/Materials (discovered 2 exits: *Fac / *Sto) -8/Storage -7/Factory History --------- Turn | Location | Event 18 | -11/Junkyard | Discovered new exit (range 14) 119 | -11/Junkyard | Entered Materials 329 | -10/Materials | Build established: Mutant 426 | -10/Materials | Discovered new exit (range 13) 440 | -10/Materials | Entered Mines 512 | -10/Mines | Discovered new exit (range 8) 588 | -10/Mines | Learned Materials terminal intel 777 | -10/Mines | Escorted by a lone wolf Derelict 837 | -10/Mines | Received a Rocket Launcher from a helpful Derelict 1500 | -10/Mines | Deemed a non-threat by the Exiles lab entrance 1500 | -10/Mines | Discovered new exit (range 5) 1656 | -10/Mines | Discovered new exit (range 10) 1690 | -10/Mines | Entered Materials 1690 | -9/Materials | Accompanied by 1 ally 1690 | -9/Materials | Evolved 2 slots: Propulsion x1, Utility x1 1691 | -9/Materials | Loaded intel: 12 terminal locations 2077 | -9/Materials | Repaired Hvy. EM Pulse Gun 2164 | -9/Materials | Build established: Scavenger-Mutant 2645 | -9/Materials | Repaired Lgt. Angular Momentum Engine 2675 | -9/Materials | Repaired Aluminum Leg 2708 | -9/Materials | Repaired Hvy. EM Pulse Gun 2745 | -9/Materials | Repaired Aluminum Leg 3118 | -9/Materials | Discovered new exit (range 4) 3283 | -9/Materials | Core integrity fell below 50% 3309 | -9/Materials | Core integrity fell below 20% 3325 | -9/Materials | Lost 12 parts (2p4n1u5w) 3399 | -9/Materials | Entered another Materials area 3399 | -8/Materials | Evolved 2 slots: Utility x1, Weapon x1 3843 | -8/Materials | Build established: Scavenger-Skirmisher 4218 | -8/Materials | Discovered new exit (range 3) 4236 | -8/Materials | Discovered new exit (range 8) 4283 | -8/Materials | Identified exit to Storage 4284 | -8/Materials | Entered Storage 4701 | -8/Storage | Lost 8 parts (1p4n3w) 5524 | -8/Storage | Repaired Lgt. EM Pulse Cannon 5563 | -8/Storage | Repaired Imp. Sensor Array 5591 | -8/Storage | Repaired Sml. Storage Unit 5680 | -8/Storage | Core integrity fell below 50% 5695 | -8/Storage | Central database locked down 6403 | -8/Storage | Assisted by bots powering up and referring to "LRC-V3" 6498 | -8/Storage | Discovered new exit (range 15) 7407 | -8/Storage | Repaired Missile Launcher 7435 | -8/Storage | Repaired Aluminum Leg 7576 | -8/Storage | Identified exit to Factory 7578 | -8/Storage | Entered Factory 7578 | -7/Factory | Evolved 2 slots: Power x1, Utility x1 9134 | -7/Factory | Lost 3 parts (1n1u1w) 9315 | -7/Factory | Cargo convoy interrupted 9673 | -7/Factory | Destroyed 8 combat bots 9978 | -7/Factory | First assault squad dispatched 10173 | -7/Factory | Destroyed 8 combat bots 10180 | -7/Factory | Lost 5 parts (1p3n1u) 10245 | -7/Factory | Garrison activated, responded to threat 10457 | -7/Factory | Core integrity fell below 50% 10492 | -7/Factory | Lost 3 parts (2u1w) 10523 | -7/Factory | System corruption reached 10% 10559 | -7/Factory | Found Powered Armor 10569 | -7/Factory | Lost 7 parts (1p2n2u2w) 10816 | -7/Factory | Garrison activated, responded to threat 10885 | -7/Factory | High security lockdown imminent 10889 | -7/Factory | Core integrity fell below 20% 10897 | -7/Factory | Destroyed by G-47 Trooper with Particle Gun Last Messages --------------- 10882_ ALERT: Construction progress impeded, dispatching reinforcements to local area. 10883_ U-05 Engineer lays Concrete. 10885_ G-50 Soldier destroyed. 10885_ ALERT: High security lockdown imminent, T-100. 10885_ U-05 Engineer destroyed. 10885_ M-28 Smith destroyed. 10885_ L-41 Fighter destroyed. 10888_ Hvy. Rocket Launcher destroyed. 10889_ Shock Absorption System destroyed. 10889_ System corrupted: Hvy. Rocket Launcher failed to launch. 10891_ U-05 Engineer destroyed. 10892_ Remote Force Field destroyed. 10892_ Powered Armor destroyed. 10892_ System corrupted by crushing effect (+2). 10892_ System corrupted by crushing effect (+5). 10893_ Hvy. Rocket Launcher destroyed. 10895_ Slug penetrates Construction Platform. 10897_ System corrupted: Mic. Nuclear Core rejected. [Achievement: 10k Club] Map ----- +----------------------------------------------------+ | # # #?????????????????????????? | | # # #?????????????????????????? | | # # #?????????????????????????? | | # + #?????????????????????????? | | # # #?????????????????????????? | | # # #?????????????????????????? | | # # ##????????????????????????? | | # %# ##????????????????????????? | | # ### ####????????????????????????? | | # # # #??#????? ?????????????????? | | ###### " ###" # #???????????????????????????? | | ?###%# # # # ##????#????"????????????????? | | ?###+######+#### #???#?#?????????????????????? | | ?## # #??##???????????????????????? | | ?## # ############????????????????? | | ?## # r ???????????????? | | ?## # k ? ???????????? | | ?## # t ???????????? | | ?## + """"i ??????????? | | ### # "" !!??????????? | | ### # "" g k!??????????? | | ### # % %"""" !! ?????????? | | ?## # "" ""% " " ?????????? | | #?# ! # ""F"" "" k ]! ????????? | | #?# # """ =" * g| * ] ????????? | | ?############### @ %= ! % ????????? | | ?????##??##??### lb% g%%== %% ????????? | | #?#???#?????#?######### #???????????? | | ?#??#???????##?##### =%% * ?????????? | | ???#?????#??#?###?## "?????????? | | ????????????#??###?# """ " ??????????? | | ??????????#????#???# """"""" ## ! ??????????? | | ?????????#??#?#???## """""""h ##? ??????????? | | ??????????????#?#??# #?#? ????????????? | | ?????????????????#?# ##???????????????? | | ???????????????????# ? #????????????????? | | ???????????????#??##???? #????????????????? | | ???????????????????? ?? ?#????????????????? | | ???????????????????????? "???? ?????????????????? | | ??????????????????#???? ? ???????????????????????? | | ???????????????????????#??#??##??????????????????? | | ?????????????????????????????????????????????????? | | ?????????????????????????????????????????????????? | | ?????????????????????????????????????????????????? | | ?????????????????????????????????????????????????? | | ?????????????????????????????????????????????????? | | ?????????????????????????????????????????????????? | | ?????????????????????????????????????????????????? | | ?????????????????????????????????????????????????? | | ?????????????????????????????????????????????????? | +----------------------------------------------------+ Best States ------------- Heat Dissipation 48 Energy Generation 28 Energy Capacity 500 Matter Stores 350 Matter Capacity 350 Sight Range 18 Robot Scan Range 15 Terrain Scan Range 16 Terrain Scan Density 85 ECM Strength 1 Armor Coverage 600 Resistance: EX 25 Evasion (%) 59 Recoil Reduction 3 Matter Filtering 30 Item Schematics ----------------- Aluminum Leg | -9/Materials | Scanalyzed Rocket Launcher | -9/Materials | Scanalyzed Assault Rifle | -9/Materials | Scanalyzed Mace | -9/Materials | Scanalyzed Lgt. Ion Engine | -9/Materials | Scanalyzed Robot Schematics ------------------ None Fabricated ------------ Nothing Alien Tech Used ----------------- None Achievements -------------- 10k Club Backstab Everything Is Under Control I Spy Oops Significant Disruption The More The Merrier Challenges ------------ None Game ------ Seed VariableDecoderMagmablaster Manual? 0 Play Time 03:55:58 Cumulative 18.6 hours Start 2023.11.16 @ 23:24:59 End 2023.11.17 @ 08:14:54 Sessions 1 Manual Loads 0 Difficulty Rogue Special Mode None Game No. 15 Rogue 15 Adventurer 0 Explorer 0 Win Type - Total 0 Types 0/0/0/0/0/0/0/0/0 Lore% 8 Gallery% 13 Achievement% 11 Wizard Run 0 Options --------- ASCII 0 Keyboard 0 Movement Mouse Keybinds 0 Fullscreen 1 Font 18/X11Bold Map View 76x50 Tactical HUD 1 Map Filters NONE Filters NONE Steam 1 RUN: 7240225c-3856-47d0-b196-bfae455fe7fa